[Event "Titled Tuesday Blitz May 18 2021"]
[White "BEEkhishig"]
[Black "Abdusattorov, Nodirbek"]
[BlackFideId "14204118"]
[WhiteElo "2686"]
[BlackElo "2662"]
[Result "0-1"]
[Round "03"]
[TimeControl "180+1"]
[Date "2021.05.18"]
[WhiteClock "0:00:08"]
[BlackClock "0:01:35"]

1. d4 {[%clk 0:02:59]}  Nf6 {[%clk 0:02:58]} 2. Nf3 {[%clk 0:02:58]}  d5 {[%clk 0:02:58]} 3. Bf4 {[%clk 0:02:58]}  c5 {[%clk 0:02:57]} 4. e3 {[%clk 0:02:57]}  Nc6 {[%clk 0:02:58]} 5. Nbd2 {[%clk 0:02:56]}  Nh5 {[%clk 0:02:57]} 6. Bg3 {[%clk 0:02:54]}  e6 {[%clk 0:02:55]} 7. c3 {[%clk 0:02:52]}  Be7 {[%clk 0:02:53]} 8. Bd3 {[%clk 0:02:52]}  O-O {[%clk 0:02:52]} 9. Ne5 {[%clk 0:02:50]}  g6 {[%clk 0:02:51]} 10. f4 {[%clk 0:02:45]}  Nxe5 {[%clk 0:02:44]} 11. fxe5 {[%clk 0:02:43]}  f5 {[%clk 0:02:44]} 12. O-O {[%clk 0:02:24]}  Nxg3 {[%clk 0:02:43]} 13. hxg3 {[%clk 0:02:25]}  Bd7 {[%clk 0:02:35]} 14. Qe2 {[%clk 0:02:24]}  c4 {[%clk 0:02:34]} 15. Bc2 {[%clk 0:02:24]}  b5 {[%clk 0:02:35]} 16. a3 {[%clk 0:02:23]}  a5 {[%clk 0:02:35]} 17. g4 {[%clk 0:02:20]}  b4 {[%clk 0:02:35]} 18. gxf5 {[%clk 0:02:18]}  exf5 {[%clk 0:02:35]} 19. axb4 {[%clk 0:02:17]}  axb4 {[%clk 0:02:36]} 20. Rxa8 {[%clk 0:02:18]}  Qxa8 {[%clk 0:02:37]} 21. Nf3 {[%clk 0:01:52]}  Be6 {[%clk 0:02:31]} 22. Qd2 {[%clk 0:01:21]}  Rb8 {[%clk 0:02:29]} 23. g4 {[%clk 0:01:13]}  fxg4 {[%clk 0:02:27]} 24. Nh2 {[%clk 0:00:58]}  Qa2 {[%clk 0:02:28]} 25. Bb1 {[%clk 0:00:54]}  bxc3 {[%clk 0:02:27]} 26. Qxc3 {[%clk 0:00:48]}  Qxb2 {[%clk 0:02:26]} 27. Qa5 {[%clk 0:00:48]}  Bg5 {[%clk 0:02:22]} 28. Qa6 {[%clk 0:00:40]}  Bxe3+ {[%clk 0:01:54]} 29. Kh1 {[%clk 0:00:39]}  Qb6 {[%clk 0:01:55]} 30. Qa3 {[%clk 0:00:35]}  Bxd4 {[%clk 0:01:50]} 31. Qe7 {[%clk 0:00:27]}  Bxe5 {[%clk 0:01:41]} 32. Re1 {[%clk 0:00:13]}  Qd6 {[%clk 0:01:35]} 33. Qxd6 {[%clk 0:00:08]}  Bxd6 {[%clk 0:01:35]} 34. Bxg6 {[%clk 0:00:08]}  hxg6 {[%clk 0:01:35]} 35. Rxe6 {[%clk 0:00:08]}  Rb1+ {[%clk 0:01:35]} 36. Kg2 {[%clk 0:00:08]}  Rb2+ {[%clk 0:01:36]} 37. Re2 {[%clk 0:00:08]}  Rxe2+ {[%clk 0:01:35]} 0-1


[Site "https://www.chess.com"]

[Event "Titled Tuesday Blitz May 18 2021"]
[White "Barseghyan, Armen Ar."]
[Black "Sadhwani, Raunak"]
[WhiteFideId "13306707"]
[BlackFideId "35093487"]
[WhiteElo "2337"]
[BlackElo "2514"]
[Result "1/2-1/2"]
[Round "03"]
[TimeControl "180+1"]
[Date "2021.05.18"]
[WhiteClock "0:00:36"]
[BlackClock "0:00:24"]

1. d4 {[%clk 0:03:00]}  c5 {[%clk 0:03:00]} 2. d5 {[%clk 0:03:00]}  e5 {[%clk 0:03:01]} 3. e4 {[%clk 0:03:00]}  d6 {[%clk 0:03:01]} 4. Nc3 {[%clk 0:03:01]}  Be7 {[%clk 0:03:01]} 5. Nf3 {[%clk 0:03:01]}  Bg4 {[%clk 0:03:02]} 6. h3 {[%clk 0:03:01]}  Bxf3 {[%clk 0:03:00]} 7. Qxf3 {[%clk 0:03:01]}  a6 {[%clk 0:03:00]} 8. Qg3 {[%clk 0:02:57]}  g6 {[%clk 0:02:59]} 9. a4 {[%clk 0:02:57]}  Bh4 {[%clk 0:02:59]} 10. Qg4 {[%clk 0:02:50]}  h5 {[%clk 0:02:59]} 11. Qd1 {[%clk 0:02:49]}  Bg5 {[%clk 0:02:59]} 12. Bd3 {[%clk 0:02:47]}  Bxc1 {[%clk 0:02:59]} 13. Qxc1 {[%clk 0:02:47]}  Nd7 {[%clk 0:02:59]} 14. Rb1 {[%clk 0:02:44]}  Ngf6 {[%clk 0:02:56]} 15. O-O {[%clk 0:02:43]}  O-O {[%clk 0:02:56]} 16. Re1 {[%clk 0:02:42]}  h4 {[%clk 0:02:54]} 17. Nd1 {[%clk 0:02:41]}  Nh5 {[%clk 0:02:54]} 18. Ne3 {[%clk 0:02:41]}  Nf4 {[%clk 0:02:53]} 19. Bf1 {[%clk 0:02:42]}  Nf6 {[%clk 0:02:43]} 20. Nc4 {[%clk 0:02:39]}  b5 {[%clk 0:02:42]} 21. axb5 {[%clk 0:02:38]}  axb5 {[%clk 0:02:43]} 22. Na3 {[%clk 0:02:38]}  Ra4 {[%clk 0:02:35]} 23. c4 {[%clk 0:01:35]}  b4 {[%clk 0:02:24]} 24. Nb5 {[%clk 0:01:35]}  Qe7 {[%clk 0:02:10]} 25. b3 {[%clk 0:01:27]}  Ra5 {[%clk 0:02:03]} 26. Ra1 {[%clk 0:01:22]}  Rfa8 {[%clk 0:02:03]} 27. Rxa5 {[%clk 0:01:22]}  Rxa5 {[%clk 0:02:04]} 28. Qb2 {[%clk 0:01:22]}  Qd8 {[%clk 0:01:54]} 29. f3 {[%clk 0:01:21]}  Kf8 {[%clk 0:01:30]} 30. Ra1 {[%clk 0:01:20]}  Ke7 {[%clk 0:01:30]} 31. Na7 {[%clk 0:01:16]}  Rxa7 {[%clk 0:01:09]} 32. Rxa7+ {[%clk 0:01:17]}  Kf8 {[%clk 0:01:10]} 33. Qa2 {[%clk 0:01:16]}  Kg7 {[%clk 0:01:08]} 34. Qa5 {[%clk 0:01:13]}  Qxa5 {[%clk 0:00:57]} 35. Rxa5 {[%clk 0:01:14]}  Kf8 {[%clk 0:00:57]} 36. Ra7 {[%clk 0:01:13]}  Ke8 {[%clk 0:00:56]} 37. Kf2 {[%clk 0:01:12]}  N6h5 {[%clk 0:00:56]} 38. Ra6 {[%clk 0:01:04]}  Ke7 {[%clk 0:00:56]} 39. Ra7+ {[%clk 0:01:05]}  Ke8 {[%clk 0:00:57]} 40. Ra8+ {[%clk 0:01:05]}  Ke7 {[%clk 0:00:57]} 41. Rh8 {[%clk 0:01:05]}  Kd7 {[%clk 0:00:34]} 42. Rf8 {[%clk 0:00:57]}  Ke7 {[%clk 0:00:34]} 43. Ra8 {[%clk 0:00:57]}  Ng3 {[%clk 0:00:31]} 44. Ra7+ {[%clk 0:00:42]}  Ke8 {[%clk 0:00:31]} 45. Ra6 {[%clk 0:00:42]}  Ke7 {[%clk 0:00:30]} 46. Ra8 {[%clk 0:00:42]}  Nh1+ {[%clk 0:00:23]} 47. Kg1 {[%clk 0:00:40]}  Ng3 {[%clk 0:00:24]} 48. Kf2 {[%clk 0:00:40]}  Nh1+ {[%clk 0:00:24]} 49. Kg1 {[%clk 0:00:40]}  Ng3 {[%clk 0:00:24]} 50. Kf2 {[%clk 0:00:36]} 1/2-1/2


[Site "https://www.chess.com"]

[Event "Titled Tuesday Blitz May 18 2021"]
[White "Fernandez, Daniel Howard"]
[Black "Nakamura, Hikaru"]
[WhiteFideId "5801605"]
[BlackFideId "2016192"]
[WhiteElo "2468"]
[BlackElo "2900"]
[Result "0-1"]
[Round "03"]
[TimeControl "180+1"]
[Date "2021.05.18"]
[WhiteClock "0:00:11"]
[BlackClock "0:00:12"]

1. e4 {[%clk 0:02:59]}  g6 {[%clk 0:02:59]} 2. d4 {[%clk 0:02:59]}  Bg7 {[%clk 0:02:59]} 3. Nc3 {[%clk 0:02:59]}  a6 {[%clk 0:02:58]} 4. Be3 {[%clk 0:02:59]}  b5 {[%clk 0:02:58]} 5. h4 {[%clk 0:02:58]}  h5 {[%clk 0:02:57]} 6. Nh3 {[%clk 0:02:59]}  Bb7 {[%clk 0:02:56]} 7. Ng5 {[%clk 0:02:59]}  d6 {[%clk 0:02:57]} 8. f3 {[%clk 0:02:58]}  e6 {[%clk 0:02:56]} 9. Qd2 {[%clk 0:02:55]}  Nd7 {[%clk 0:02:56]} 10. a4 {[%clk 0:02:54]}  b4 {[%clk 0:02:56]} 11. Nd1 {[%clk 0:02:55]}  a5 {[%clk 0:02:52]} 12. c3 {[%clk 0:02:56]}  bxc3 {[%clk 0:02:51]} 13. Nxc3 {[%clk 0:02:57]}  Ngf6 {[%clk 0:02:51]} 14. Rc1 {[%clk 0:02:53]}  O-O {[%clk 0:02:32]} 15. Be2 {[%clk 0:02:48]}  c6 {[%clk 0:02:29]} 16. O-O {[%clk 0:02:47]}  Ba6 {[%clk 0:02:27]} 17. Bxa6 {[%clk 0:02:37]}  Rxa6 {[%clk 0:02:28]} 18. Ne2 {[%clk 0:02:37]}  Qb8 {[%clk 0:02:27]} 19. Nf4 {[%clk 0:02:31]}  Re8 {[%clk 0:02:17]} 20. Qd3 {[%clk 0:02:28]}  Rb6 {[%clk 0:02:15]} 21. e5 {[%clk 0:01:30]}  Rb3 {[%clk 0:01:32]} 22. Rc3 {[%clk 0:01:27]}  Rxc3 {[%clk 0:01:32]} 23. bxc3 {[%clk 0:01:27]}  dxe5 {[%clk 0:01:33]} 24. Rb1 {[%clk 0:01:17]}  Qc8 {[%clk 0:01:25]} 25. Nxf7 {[%clk 0:01:13]}  Kxf7 {[%clk 0:01:10]} 26. Qxg6+ {[%clk 0:01:12]}  Kg8 {[%clk 0:01:11]} 27. Nh3 {[%clk 0:00:48]}  exd4 {[%clk 0:00:54]} 28. Bh6 {[%clk 0:00:43]}  Re7 {[%clk 0:00:54]} 29. cxd4 {[%clk 0:00:38]}  Nf8 {[%clk 0:00:46]} 30. Qg3 {[%clk 0:00:38]}  Rb7 {[%clk 0:00:42]} 31. Bxg7 {[%clk 0:00:27]}  Rxg7 {[%clk 0:00:26]} 32. Ng5 {[%clk 0:00:27]}  Qc7 {[%clk 0:00:21]} 33. Qe1 {[%clk 0:00:23]}  Qd6 {[%clk 0:00:19]} 34. Rd1 {[%clk 0:00:15]}  Nd5 {[%clk 0:00:17]} 35. Qxa5 {[%clk 0:00:14]}  Qf4 {[%clk 0:00:15]} 36. Qd8 {[%clk 0:00:12]}  Qxh4 {[%clk 0:00:13]} 37. Nxe6 {[%clk 0:00:12]}  Rxg2+ {[%clk 0:00:11]} 38. Kxg2 {[%clk 0:00:11]}  Ne3+ {[%clk 0:00:12]} 0-1


[Site "https://www.chess.com"]

[Event "Titled Tuesday Blitz May 18 2021"]
[White "Ivanisevic, Ivan"]
[Black "Sevian, Samuel"]
[WhiteFideId "912417"]
[BlackFideId "2040506"]
[WhiteElo "2499"]
[BlackElo "2975"]
[Result "0-1"]
[Round "03"]
[TimeControl "180+1"]
[Date "2021.05.18"]
[WhiteClock "0:00:03"]
[BlackClock "0:00:17"]

1. d4 {[%clk 0:03:00]}  Nf6 {[%clk 0:03:00]} 2. c4 {[%clk 0:03:01]}  e5 {[%clk 0:03:01]} 3. dxe5 {[%clk 0:03:00]}  Ng4 {[%clk 0:03:01]} 4. e3 {[%clk 0:02:58]}  Nxe5 {[%clk 0:03:01]} 5. f4 {[%clk 0:02:54]}  Nec6 {[%clk 0:02:59]} 6. Nc3 {[%clk 0:02:48]}  Bb4 {[%clk 0:02:53]} 7. Ne2 {[%clk 0:02:48]}  O-O {[%clk 0:02:53]} 8. a3 {[%clk 0:02:46]}  Bxc3+ {[%clk 0:02:50]} 9. Nxc3 {[%clk 0:02:47]}  a5 {[%clk 0:02:50]} 10. Bd3 {[%clk 0:02:32]}  Re8 {[%clk 0:02:50]} 11. O-O {[%clk 0:02:32]}  d6 {[%clk 0:02:51]} 12. b3 {[%clk 0:02:28]}  Nd7 {[%clk 0:02:50]} 13. Bc2 {[%clk 0:02:26]}  Nc5 {[%clk 0:02:48]} 14. Rb1 {[%clk 0:02:24]}  Be6 {[%clk 0:02:42]} 15. e4 {[%clk 0:02:21]}  Qf6 {[%clk 0:02:41]} 16. Nb5 {[%clk 0:02:20]}  Qd8 {[%clk 0:02:37]} 17. Bb2 {[%clk 0:02:07]}  f6 {[%clk 0:01:51]} 18. Nc3 {[%clk 0:02:06]}  Bf7 {[%clk 0:01:50]} 19. Bc1 {[%clk 0:01:44]}  Nd7 {[%clk 0:01:45]} 20. Qd3 {[%clk 0:01:38]}  Kh8 {[%clk 0:01:32]} 21. Be3 {[%clk 0:01:37]}  Nc5 {[%clk 0:01:30]} 22. Qd2 {[%clk 0:01:36]}  a4 {[%clk 0:01:30]} 23. b4 {[%clk 0:01:28]}  Nb3 {[%clk 0:01:30]} 24. Qd3 {[%clk 0:01:28]}  Ne7 {[%clk 0:01:04]} 25. Nd5 {[%clk 0:01:09]}  Nxd5 {[%clk 0:01:00]} 26. cxd5 {[%clk 0:01:10]}  Bg6 {[%clk 0:00:57]} 27. f5 {[%clk 0:01:08]}  Bf7 {[%clk 0:00:57]} 28. Rf4 {[%clk 0:00:58]}  c6 {[%clk 0:00:53]} 29. dxc6 {[%clk 0:00:33]}  bxc6 {[%clk 0:00:54]} 30. Bf2 {[%clk 0:00:33]}  d5 {[%clk 0:00:39]} 31. Rd1 {[%clk 0:00:33]}  Qe7 {[%clk 0:00:35]} 32. h3 {[%clk 0:00:24]}  Rad8 {[%clk 0:00:34]} 33. Re1 {[%clk 0:00:24]}  d4 {[%clk 0:00:26]} 34. e5 {[%clk 0:00:22]}  c5 {[%clk 0:00:22]} 35. Bh4 {[%clk 0:00:12]}  c4 {[%clk 0:00:20]} 36. Qd1 {[%clk 0:00:10]}  d3 {[%clk 0:00:19]} 37. Bb1 {[%clk 0:00:10]}  Qa7+ {[%clk 0:00:18]} 38. Bf2 {[%clk 0:00:10]}  Qc7 {[%clk 0:00:18]} 39. Bg3 {[%clk 0:00:05]}  Rxe5 {[%clk 0:00:17]} 40. Rxe5 {[%clk 0:00:04]}  Qxe5 {[%clk 0:00:18]} 41. Kh2 {[%clk 0:00:04]}  Qe2 {[%clk 0:00:18]} 42. Qg1 {[%clk 0:00:04]}  d2 {[%clk 0:00:17]} 43. Qa7 {[%clk 0:00:04]}  d1=Q {[%clk 0:00:17]} 44. Qxf7 {[%clk 0:00:04]}  Qe8 {[%clk 0:00:17]} 45. Qxc4 {[%clk 0:00:03]}  Nd2 {[%clk 0:00:17]} 0-1


[Site "https://www.chess.com"]

[Event "Titled Tuesday Blitz May 18 2021"]
[White "Korchmar, Vasiliy"]
[Black "Maghsoodloo, Parham"]
[WhiteFideId "24131750"]
[BlackFideId "12539929"]
[WhiteElo "2370"]
[BlackElo "2601"]
[Result "0-1"]
[Round "03"]
[TimeControl "180+1"]
[Date "2021.05.18"]
[WhiteClock "0:00:16"]
[BlackClock "0:00:54"]

1. d4 {[%clk 0:03:00]}  Nf6 {[%clk 0:02:59]} 2. Nf3 {[%clk 0:03:01]}  e6 {[%clk 0:02:59]} 3. Bf4 {[%clk 0:03:01]}  b6 {[%clk 0:02:53]} 4. Nbd2 {[%clk 0:03:01]}  Bb7 {[%clk 0:02:51]} 5. e3 {[%clk 0:03:01]}  Bd6 {[%clk 0:02:49]} 6. Bg5 {[%clk 0:03:00]}  h6 {[%clk 0:02:45]} 7. Bh4 {[%clk 0:03:00]}  Be7 {[%clk 0:02:42]} 8. Bd3 {[%clk 0:02:59]}  c5 {[%clk 0:02:42]} 9. c3 {[%clk 0:02:58]}  O-O {[%clk 0:02:40]} 10. O-O {[%clk 0:02:58]}  d6 {[%clk 0:02:38]} 11. Qe2 {[%clk 0:02:55]}  Nbd7 {[%clk 0:02:38]} 12. Rfd1 {[%clk 0:02:55]}  a6 {[%clk 0:02:38]} 13. a4 {[%clk 0:02:54]}  Nh5 {[%clk 0:02:26]} 14. Bxe7 {[%clk 0:02:42]}  Qxe7 {[%clk 0:02:27]} 15. b4 {[%clk 0:02:40]}  Nhf6 {[%clk 0:02:24]} 16. Rab1 {[%clk 0:02:31]}  cxd4 {[%clk 0:02:21]} 17. cxd4 {[%clk 0:02:30]}  Rfc8 {[%clk 0:02:20]} 18. Rdc1 {[%clk 0:02:29]}  Nd5 {[%clk 0:02:16]} 19. Qf1 {[%clk 0:02:15]}  Nc3 {[%clk 0:01:52]} 20. Ra1 {[%clk 0:02:10]}  Nf6 {[%clk 0:01:51]} 21. Nc4 {[%clk 0:02:02]}  Ncd5 {[%clk 0:01:48]} 22. Qe1 {[%clk 0:01:50]}  Qd8 {[%clk 0:01:41]} 23. h3 {[%clk 0:01:48]}  a5 {[%clk 0:01:37]} 24. bxa5 {[%clk 0:01:20]}  bxa5 {[%clk 0:01:38]} 25. Bf1 {[%clk 0:01:13]}  Nb4 {[%clk 0:01:29]} 26. Qd1 {[%clk 0:01:02]}  Ne4 {[%clk 0:01:15]} 27. Nfd2 {[%clk 0:01:01]}  Nxd2 {[%clk 0:01:10]} 28. Qxd2 {[%clk 0:01:02]}  Ba6 {[%clk 0:01:09]} 29. Rc3 {[%clk 0:00:41]}  Bxc4 {[%clk 0:01:07]} 30. Bxc4 {[%clk 0:00:38]}  d5 {[%clk 0:01:04]} 31. Bb5 {[%clk 0:00:38]}  Rxc3 {[%clk 0:01:04]} 32. Qxc3 {[%clk 0:00:39]}  Rc8 {[%clk 0:01:05]} 33. Qe1 {[%clk 0:00:36]}  Nc2 {[%clk 0:01:03]} 34. Qb1 {[%clk 0:00:34]}  Nxa1 {[%clk 0:01:03]} 35. Qxa1 {[%clk 0:00:35]}  Qc7 {[%clk 0:01:03]} 36. Qa2 {[%clk 0:00:30]}  Qc2 {[%clk 0:01:01]} 37. Qa3 {[%clk 0:00:29]}  Qc1+ {[%clk 0:00:59]} 38. Qxc1 {[%clk 0:00:30]}  Rxc1+ {[%clk 0:00:59]} 39. Kh2 {[%clk 0:00:30]}  Kf8 {[%clk 0:00:59]} 40. h4 {[%clk 0:00:29]}  g5 {[%clk 0:00:57]} 41. hxg5 {[%clk 0:00:28]}  hxg5 {[%clk 0:00:58]} 42. Kg3 {[%clk 0:00:29]}  Ke7 {[%clk 0:00:58]} 43. Ba6 {[%clk 0:00:25]}  Rc2 {[%clk 0:00:57]} 44. Bb5 {[%clk 0:00:25]}  f6 {[%clk 0:00:57]} 45. Kf3 {[%clk 0:00:25]}  e5 {[%clk 0:00:55]} 46. dxe5 {[%clk 0:00:18]}  fxe5 {[%clk 0:00:56]} 47. g4 {[%clk 0:00:19]}  Kd6 {[%clk 0:00:55]} 48. Bd3 {[%clk 0:00:16]}  e4+ {[%clk 0:00:54]} 0-1


[Site "https://www.chess.com"]

[Event "Titled Tuesday Blitz May 18 2021"]
[White "Korobov, Anton"]
[Black "Bologan, Victor"]
[WhiteFideId "14105730"]
[BlackFideId "13900048"]
[WhiteElo "2718"]
[BlackElo "2511"]
[Result "1/2-1/2"]
[Round "03"]
[TimeControl "180+1"]
[Date "2021.05.18"]
[WhiteClock "0:00:24"]
[BlackClock "0:00:12"]

1. d4 {[%clk 0:03:00]}  d6 {[%clk 0:03:00]} 2. c4 {[%clk 0:02:57]}  e5 {[%clk 0:02:59]} 3. Nf3 {[%clk 0:02:58]}  e4 {[%clk 0:02:58]} 4. Ng5 {[%clk 0:02:58]}  f5 {[%clk 0:02:58]} 5. Nc3 {[%clk 0:02:58]}  Nf6 {[%clk 0:02:58]} 6. h4 {[%clk 0:02:54]}  c6 {[%clk 0:02:56]} 7. b4 {[%clk 0:02:52]}  g6 {[%clk 0:02:45]} 8. Qb3 {[%clk 0:02:47]}  Bg7 {[%clk 0:02:44]} 9. b5 {[%clk 0:02:27]}  O-O {[%clk 0:02:38]} 10. c5+ {[%clk 0:02:23]}  d5 {[%clk 0:02:36]} 11. e3 {[%clk 0:02:23]}  a6 {[%clk 0:02:03]} 12. bxc6 {[%clk 0:02:18]}  bxc6 {[%clk 0:02:02]} 13. Rb1 {[%clk 0:02:11]}  a5 {[%clk 0:01:59]} 14. Na4 {[%clk 0:02:04]}  Na6 {[%clk 0:01:49]} 15. Nb6 {[%clk 0:02:01]}  Ra7 {[%clk 0:01:48]} 16. Nxc8 {[%clk 0:01:57]}  Qxc8 {[%clk 0:01:47]} 17. Bd2 {[%clk 0:01:52]}  Nc7 {[%clk 0:01:39]} 18. Qa4 {[%clk 0:01:41]}  Ne6 {[%clk 0:01:34]} 19. Rb6 {[%clk 0:01:35]}  Nd8 {[%clk 0:01:23]} 20. Be2 {[%clk 0:01:33]}  Nd7 {[%clk 0:01:20]} 21. Rb3 {[%clk 0:01:26]}  h6 {[%clk 0:01:20]} 22. Nh3 {[%clk 0:01:25]}  Ne6 {[%clk 0:01:18]} 23. Nf4 {[%clk 0:01:21]}  Nxf4 {[%clk 0:01:13]} 24. exf4 {[%clk 0:01:22]}  h5 {[%clk 0:01:11]} 25. O-O {[%clk 0:01:20]}  Qc7 {[%clk 0:01:05]} 26. Rfb1 {[%clk 0:01:18]}  Rb8 {[%clk 0:01:00]} 27. Rxb8+ {[%clk 0:01:12]}  Nxb8 {[%clk 0:00:59]} 28. Rb6 {[%clk 0:01:13]}  Bf6 {[%clk 0:00:55]} 29. g3 {[%clk 0:01:12]}  Bd8 {[%clk 0:00:52]} 30. Bxa5 {[%clk 0:01:09]}  Qc8 {[%clk 0:00:49]} 31. Qb4 {[%clk 0:01:08]}  Nd7 {[%clk 0:00:44]} 32. Rxc6 {[%clk 0:00:56]}  Qxc6 {[%clk 0:00:42]} 33. Bxd8 {[%clk 0:00:57]}  Rxa2 {[%clk 0:00:41]} 34. Bb5 {[%clk 0:00:56]}  Qc8 {[%clk 0:00:38]} 35. c6 {[%clk 0:00:56]}  e3 {[%clk 0:00:24]} 36. fxe3 {[%clk 0:00:49]}  Qxd8 {[%clk 0:00:15]} 37. Qd6 {[%clk 0:00:49]}  Qa5 {[%clk 0:00:14]} 38. Qxg6+ {[%clk 0:00:48]}  Kh8 {[%clk 0:00:13]} 39. Qxh5+ {[%clk 0:00:48]}  Kg7 {[%clk 0:00:13]} 40. Qg5+ {[%clk 0:00:35]}  Kf7 {[%clk 0:00:13]} 41. Qh5+ {[%clk 0:00:35]}  Kg7 {[%clk 0:00:12]} 42. Qg5+ {[%clk 0:00:24]}  Kf7 {[%clk 0:00:12]} 43. Qh5+ {[%clk 0:00:24]}  Kg7 {[%clk 0:00:12]} 1/2-1/2


[Site "https://www.chess.com"]

[Event "Titled Tuesday Blitz May 18 2021"]
[White "Lazavik, Denis"]
[Black "Boyer, Mahel"]
[WhiteFideId "13515110"]
[BlackFideId "45102422"]
[WhiteElo "2436"]
[BlackElo "2325"]
[Result "1-0"]
[Round "03"]
[TimeControl "180+1"]
[Date "2021.05.18"]
[WhiteClock "0:00:25"]
[BlackClock "0:00:04"]

1. d4 {[%clk 0:03:00]}  Nf6 {[%clk 0:02:53]} 2. c4 {[%clk 0:03:00]}  c5 {[%clk 0:02:53]} 3. d5 {[%clk 0:03:00]}  e6 {[%clk 0:02:53]} 4. Nc3 {[%clk 0:03:00]}  exd5 {[%clk 0:02:54]} 5. cxd5 {[%clk 0:03:00]}  g6 {[%clk 0:02:55]} 6. e4 {[%clk 0:03:00]}  d6 {[%clk 0:02:55]} 7. h3 {[%clk 0:03:00]}  Bg7 {[%clk 0:02:54]} 8. Bd3 {[%clk 0:03:01]}  a6 {[%clk 0:02:55]} 9. a4 {[%clk 0:03:01]}  Nbd7 {[%clk 0:02:55]} 10. Nf3 {[%clk 0:03:01]}  Nh5 {[%clk 0:02:55]} 11. Bg5 {[%clk 0:02:52]}  Bf6 {[%clk 0:02:51]} 12. Be3 {[%clk 0:02:52]}  Ne5 {[%clk 0:02:48]} 13. Be2 {[%clk 0:02:52]}  Nxf3+ {[%clk 0:02:48]} 14. Bxf3 {[%clk 0:02:51]}  Ng7 {[%clk 0:02:49]} 15. O-O {[%clk 0:02:51]}  O-O {[%clk 0:02:47]} 16. Qd2 {[%clk 0:02:45]}  Be5 {[%clk 0:02:13]} 17. Be2 {[%clk 0:01:58]}  f5 {[%clk 0:02:11]} 18. f4 {[%clk 0:01:57]}  Bxc3 {[%clk 0:02:12]} 19. bxc3 {[%clk 0:01:56]}  fxe4 {[%clk 0:02:13]} 20. g4 {[%clk 0:01:56]}  Qh4 {[%clk 0:02:12]} 21. Kg2 {[%clk 0:01:53]}  h5 {[%clk 0:01:39]} 22. f5 {[%clk 0:01:29]}  hxg4 {[%clk 0:00:18]} 23. hxg4 {[%clk 0:01:24]}  gxf5 {[%clk 0:00:18]} 24. Bg5 {[%clk 0:01:19]}  Qh7 {[%clk 0:00:19]} 25. Rh1 {[%clk 0:01:18]}  Qg6 {[%clk 0:00:19]} 26. Rh6 {[%clk 0:01:18]}  e3 {[%clk 0:00:19]} 27. Qxe3 {[%clk 0:01:06]}  Qe8 {[%clk 0:00:19]} 28. Be7 {[%clk 0:00:43]}  f4 {[%clk 0:00:18]} 29. Qe4 {[%clk 0:00:41]}  Rf5 {[%clk 0:00:02]} 30. Rah1 {[%clk 0:00:23]}  Re5 {[%clk 0:00:01]} 31. Qh7+ {[%clk 0:00:23]}  Kf7 {[%clk 0:00:02]} 32. Rf6+ {[%clk 0:00:22]}  Kxe7 {[%clk 0:00:03]} 33. Qxg7+ {[%clk 0:00:23]}  Kd8 {[%clk 0:00:03]} 34. Rxd6+ {[%clk 0:00:24]}  Bd7 {[%clk 0:00:03]} 35. Rxd7+ {[%clk 0:00:24]}  Qxd7 {[%clk 0:00:04]} 36. Qxe5 {[%clk 0:00:25]} 1-0


[Site "https://www.chess.com"]

[Event "Titled Tuesday Blitz May 18 2021"]
[White "Leitao, Rafael"]
[Black "Sarana, Alexey"]
[WhiteFideId "2101246"]
[BlackFideId "24133795"]
[WhiteElo "2609"]
[BlackElo "2629"]
[Result "0-1"]
[Round "03"]
[TimeControl "180+1"]
[Date "2021.05.18"]
[WhiteClock "0:00:57"]
[BlackClock "0:01:45"]

1. c4 {[%clk 0:03:00]}  e6 {[%clk 0:02:56]} 2. g3 {[%clk 0:02:55]}  d5 {[%clk 0:02:55]} 3. Bg2 {[%clk 0:02:53]}  Nf6 {[%clk 0:02:56]} 4. Nf3 {[%clk 0:02:53]}  Be7 {[%clk 0:02:56]} 5. O-O {[%clk 0:02:52]}  O-O {[%clk 0:02:57]} 6. b3 {[%clk 0:02:51]}  a5 {[%clk 0:02:56]} 7. Nc3 {[%clk 0:02:48]}  d4 {[%clk 0:02:32]} 8. Nb5 {[%clk 0:02:42]}  Nc6 {[%clk 0:02:21]} 9. Bb2 {[%clk 0:02:34]}  e5 {[%clk 0:02:19]} 10. e3 {[%clk 0:02:34]}  Bc5 {[%clk 0:02:07]} 11. exd4 {[%clk 0:02:08]}  exd4 {[%clk 0:02:08]} 12. d3 {[%clk 0:02:05]}  h6 {[%clk 0:02:01]} 13. Re1 {[%clk 0:01:55]}  Bg4 {[%clk 0:02:01]} 14. h3 {[%clk 0:01:54]}  Bh5 {[%clk 0:02:00]} 15. g4 {[%clk 0:01:46]}  Bg6 {[%clk 0:02:00]} 16. Ne5 {[%clk 0:01:43]}  Nxe5 {[%clk 0:02:00]} 17. Rxe5 {[%clk 0:01:43]}  Nd7 {[%clk 0:02:01]} 18. Re2 {[%clk 0:01:34]}  c6 {[%clk 0:01:49]} 19. Nxd4 {[%clk 0:01:34]}  Nf6 {[%clk 0:01:45]} 20. Nf5 {[%clk 0:01:03]}  Bxf5 {[%clk 0:01:44]} 21. gxf5 {[%clk 0:01:03]}  Bd4 {[%clk 0:01:45]} 22. Bxd4 {[%clk 0:00:57]}  Qxd4 {[%clk 0:01:46]} 23. Qd2 {[%clk 0:00:57]}  Qxa1+ {[%clk 0:01:45]} 0-1


[Site "https://www.chess.com"]